fUST/lending_fUST_20250520
["ID","MTS","AMOUNT","RATE_DAILY","PERIOD"]
[361696665,1747697452289,-430.0,0.0001863,2]
[361696666,1747697452299,-430.0,0.0001863,2]
[361696667,1747697452308,-430.0,0.0001863,2]
[361696668,1747697452318,-1069.51,0.0001863,2]
[361696669,1747697452327,-430.0,0.0001863,2]
[361696670,1747697452337,-430.0,0.0001863,2]
[361696671,1747697452346,-969.97,0.0001863,2]
[361696672,1747697452355,-430.0,0.0001863,2]
[361696673,1747697452365,-430.0,0.0001863,2]
[361696674,1747697452374,-430.0,0.0001863,2]
[361696675,1747697452384,-1043.22,0.0001863,2]
[361696676,1747697452394,-511.44,0.0001863,2]
[361696677,1747697452403,-430.0,0.0001863,2]
[361696678,1747697452412,-430.0,0.0001863,2]
[361696679,1747697452422,-705.67,0.0001863,2]
[361696680,1747697452434,-1303.12,0.0001863,2]
[361696681,1747697452444,-1737.97,0.0001863,2]
[361696682,1747697452453,-430.0,0.0001863,2]
[361696683,1747697452463,-484.59,0.0001863,2]
[361696684,1747697452472,-430.0,0.0001863,2]
[361696685,1747697452483,-430.0,0.0001863,2]
[361696686,1747697452492,-470.0,0.0001863,2]
[361696687,1747697452502,-470.0,0.0001863,2]
[361696688,1747697452513,-430.0,0.0001863,2]
[361696689,1747697452523,-420.0,0.0001863,2]
[361696690,1747697452533,-485.3,0.0001863,2]
[361696691,1747697452543,-2141.67,0.0001863,2]
[361696692,1747697452553,-470.0,0.0001863,2]
[361696693,1747697452563,-555.44,0.0001863,2]
[361696694,1747697452573,-430.0,0.0001863,2]
[361696695,1747697452583,-470.0,0.0001863,2]
[361696696,1747697452593,-3476.16,0.0001863,2]
[361696697,1747697452603,-430.0,0.0001863,2]
[361696698,1747697452613,-800.73,0.0001863,2]
[361696699,1747697452622,-695.3,0.0001863,2]
[361696700,1747697452633,-430.0,0.0001863,2]
[361696701,1747697452642,-532.3,0.0001863,2]
[361696702,1747697452652,-430.0,0.0001863,2]
[361696703,1747697452662,-873.21,0.0001863,2]
[361696704,1747697452671,-516.57,0.0001863,2]
[361696705,1747697452681,-884.23,0.0001863,2]
[361696706,1747697452691,-430.0,0.0001863,2]
[361696707,1747697452700,-430.0,0.0001863,2]
[361696708,1747697452710,-430.0,0.0001863,2]
[361696709,1747697452719,-430.0,0.0001863,2]
[361696710,1747697452728,-1211.57,0.0001863,2]
[361696711,1747697452738,-430.0,0.0001863,2]
[361696712,1747697452747,-798.39,0.0001863,2]
[361696713,1747697452756,-430.0,0.0001863,2]
[361696714,1747697452766,-821.42,0.0001863,2]
[361696715,1747697452775,-470.0,0.0001863,2]
[361696716,1747697452784,-430.0,0.0001863,2]
[361696717,1747697452794,-430.0,0.0001863,2]
[361696718,1747697452804,-430.0,0.0001863,2]
[361696719,1747697452813,-430.0,0.0001863,2]
[361696720,1747697452823,-3820.39,0.0001863,2]
[361696721,1747697452833,-2217.64,0.0001863,2]
[361696722,1747697452843,-599.21,0.0001863,2]
[361696723,1747697452852,-430.0,0.0001863,2]
[361696724,1747697452862,-977.74,0.0001863,2]
[361696725,1747697452871,-470.0,0.0001863,2]
[361696726,1747697452881,-430.0,0.0001863,2]
[361696727,1747697452890,-430.0,0.0001863,2]
[361696728,1747697452899,-544.53,0.0001863,2]
[361696729,1747697452909,-1472.56,0.0001863,2]
[361696730,1747697452918,-717.07,0.0001863,2]
[361696731,1747697452927,-430.0,0.0001863,2]
[361696732,1747697452937,-430.0,0.0001863,2]
[361696733,1747697452946,-432.72,0.0001863,2]
[361696734,1747697452956,-430.0,0.0001863,2]
[361696735,1747697452965,-1083.64,0.0001863,2]
[361696736,1747697452974,-470.0,0.0001863,2]
[361696737,1747697452983,-430.0,0.0001863,2]
[361696738,1747697452992,-627.16,0.0001863,2]
[361696739,1747697453002,-370.0,0.0001863,2]
[361696740,1747697453012,-430.0,0.0001863,2]
[361696741,1747697453021,-839.55,0.0001863,2]
[361696742,1747697453030,-430.0,0.0001863,2]
[361696743,1747697453040,-430.0,0.0001863,2]
[361696744,1747697453050,-430.0,0.0001863,2]
[361696745,1747697453059,-430.0,0.0001863,2]
[361696746,1747697453069,-430.0,0.0001863,2]
[361696747,1747697453078,-205.45780602,0.0001863,2]
[361696748,1747697453088,-430.0,0.0001863,2]
[361696749,1747697453098,-430.0,0.0001863,2]
[361696750,1747697453109,-1025.64,0.0001863,2]
[361696751,1747697453119,-1687.28,0.0001863,2]
[361696752,1747697453128,-1341.96,0.0001863,2]
[361696753,1747697453140,-430.0,0.0001863,2]
[361696754,1747697453151,-639.86,0.0001863,2]
[361696755,1747697453160,-430.0,0.0001863,2]
[361696756,1747697453170,-430.0,0.0001863,2]
[361696757,1747697453181,-430.0,0.0001863,2]
[361696758,1747697453190,-470.0,0.0001863,2]
[361696759,1747697453200,-430.0,0.0001863,2]
[361696760,1747697453209,-430.0,0.0001863,2]
[361696761,1747697453219,-164.09258341,0.0001863,2]
[361696762,1747697453228,-430.0,0.0001863,2]
[361696763,1747697453238,-579.07,0.0001863,2]
[361696764,1747697453247,-430.0,0.0001863,2]
[361696765,1747697453257,-430.0,0.0001863,2]
[361696766,1747697453267,-430.0,0.0001863,2]
[361696767,1747697453278,-430.0,0.0001863,2]
[361696768,1747697453288,-430.0,0.0001863,2]
[361696769,1747697453301,-430.0,0.0001863,2]
[361696770,1747697453310,-430.0,0.0001863,2]
[361696771,1747697453320,-430.0,0.0001863,2]
[361696772,1747697453329,-430.0,0.0001863,2]
[361696773,1747697453339,-430.0,0.0001863,2]
[361696774,1747697453349,-430.0,0.0001863,2]
[361696775,1747697453359,-430.0,0.0001863,2]
[361696776,1747697453369,-925.94,0.0001863,2]
[361696777,1747697453378,-430.0,0.0001863,2]
[361696778,1747697453388,-430.0,0.0001863,2]
[361696779,1747697453397,-430.0,0.0001863,2]
[361696780,1747697453407,-1218.69,0.0001863,2]
[361696781,1747697453417,-430.0,0.0001863,2]
[361696782,1747697453427,-3475.72,0.0001863,2]
[361696783,1747697453441,-500.0,0.00018673,2]
[361696784,1747697453451,-1010.32010938,0.00018762,2]
[361696785,1747697453460,-490.0,0.00018904,2]
[361696786,1747697453471,-490.0,0.00018904,2]
[361696787,1747697453480,-430.0,0.00018904,2]
[361696788,1747697453490,-430.0,0.00018904,2]
[361696789,1747697453499,-430.0,0.00018904,2]
[361696790,1747697453509,-430.0,0.00018904,2]
[361696791,1747697453518,-490.0,0.00018904,2]
[361696792,1747697453527,-439.99484291,0.00018904,2]
[361696793,1747697453538,-490.0,0.00018904,2]
[361696794,1747697453547,-340.0,0.00018904,2]
[361696795,1747697453556,-340.0,0.00018904,2]
[361696796,1747697453566,-430.0,0.00018904,2]
[361696797,1747697453576,-430.0,0.00018904,2]
[361696798,1747697453585,-430.0,0.00018904,2]
[361696799,1747697453595,-440.0,0.00018904,2]
[361696800,1747697453605,-430.0,0.00018904,2]
[361696801,1747697453614,-430.0,0.00018904,2]
[361696802,1747697453624,-430.0,0.00018904,2]
[361696803,1747697453633,-557.11,0.00018904,2]
[361696804,1747697453643,-430.0,0.00018904,2]
[361696805,1747697453652,-430.0,0.00018904,2]
[361696806,1747697453662,-458.64,0.00018904,2]
[361696807,1747697453671,-430.0,0.00018904,2]
[361696808,1747697453681,-430.0,0.00018904,2]
[361696809,1747697453690,-430.0,0.00018904,2]
[361696810,1747697453700,-544.46,0.00018904,2]
[361696811,1747697453709,-490.0,0.00018904,2]
[361696812,1747697453719,-430.0,0.00018904,2]
[361696813,1747697453728,-315.09333378,0.00018904,2]
[361696814,1747697453738,-430.0,0.00018904,2]
[361696815,1747697453747,-465.21,0.00018904,2]
[361696816,1747697453757,-430.0,0.00018904,2]
[361696817,1747697453767,-430.0,0.00018904,2]
[361696818,1747697453776,-490.0,0.00018904,2]
[361696819,1747697453786,-687.66,0.00018904,2]
[361696820,1747697453796,-490.0,0.00018904,2]
[361696821,1747697453805,-430.0,0.00018904,2]
[361696822,1747697453815,-490.0,0.00018904,2]
[361696823,1747697453825,-430.0,0.00018904,2]
[361696824,1747697453834,-430.0,0.00018904,2]
[361696825,1747697453844,-430.0,0.00018904,2]
[361696826,1747697453854,-430.0,0.00018904,2]
[361696827,1747697453864,-430.0,0.00018904,2]
[361696828,1747697453873,-490.0,0.00018904,2]
[361696829,1747697453883,-430.0,0.00018904,2]
[361696830,1747697453893,-430.0,0.00018904,2]
[361696831,1747697453902,-430.0,0.00018904,2]
[361696832,1747697453912,-400.12,0.00018904,2]
[361696833,1747697453922,-430.0,0.00018904,2]
[361696834,1747697453932,-660.49,0.00018904,2]
[361696835,1747697453942,-430.0,0.00018904,2]
[361696836,1747697453952,-430.0,0.00018904,2]
[361696837,1747697453962,-430.0,0.00018904,2]
[361696838,1747697453972,-430.0,0.00018904,2]
[361696839,1747697453982,-430.0,0.00018904,2]
[361696840,1747697453992,-430.0,0.00018904,2]
[361696841,1747697454002,-490.0,0.00018904,2]
[361696842,1747697454012,-430.0,0.00018904,2]
[361696843,1747697454022,-430.0,0.00018904,2]
[361696844,1747697454032,-432.99,0.00018904,2]
[361696845,1747697454041,-430.0,0.00018904,2]
[361696846,1747697454052,-490.0,0.00018904,2]
[361696847,1747697454061,-440.0,0.00018904,2]
[361696848,1747697454071,-586.66,0.00018904,2]
[361696849,1747697454081,-430.0,0.00018904,2]
[361696850,1747697454091,-490.0,0.00018904,2]
[361696851,1747697454101,-430.0,0.00018904,2]
[361696852,1747697454111,-430.0,0.00018904,2]
[361696853,1747697454121,-449.33,0.00018904,2]
[361696854,1747697454131,-430.0,0.00018904,2]
[361696855,1747697454141,-490.0,0.00018904,2]
[361696856,1747697454151,-490.0,0.00018904,2]
[361696857,1747697454161,-200.0,0.00018904,2]
[361696858,1747697454170,-490.0,0.00018904,2]
[361696859,1747697454180,-430.0,0.00018904,2]
[361696860,1747697454190,-420.85202705,0.00018904,2]
[361696861,1747697454200,-430.0,0.00018904,2]
[361696862,1747697454209,-430.0,0.00018904,2]
[361696863,1747697454219,-430.0,0.00018904,2]
[361696864,1747697454228,-430.0,0.00018904,2]
[361696865,1747697454238,-430.0,0.00018904,2]
[361696866,1747697454248,-430.0,0.00018904,2]
[361696867,1747697454258,-430.0,0.00018904,2]
[361696868,1747697454268,-430.0,0.00018904,2]
[361696869,1747697454278,-604.78,0.00018904,2]
[361696870,1747697454287,-377.57,0.00018904,2]
[361696871,1747697454297,-430.0,0.00018904,2]
[361696872,1747697454307,-490.0,0.00018904,2]
[361696873,1747697454316,-430.0,0.00018904,2]
[361696874,1747697454326,-430.0,0.00018904,2]
[361696875,1747697454336,-430.0,0.00018904,2]
[361696876,1747697454346,-430.0,0.00018904,2]
[361696877,1747697454356,-466.60450915,0.00018904,2]
[361696878,1747697454365,-490.0,0.00018904,2]
[361696879,1747697454374,-430.0,0.00018904,2]
[361696880,1747697454384,-576.45,0.00018904,2]
[361696881,1747697454393,-430.0,0.00018904,2]
[361696882,1747697454404,-490.0,0.00018904,2]
[361696883,1747697454414,-162.87874045,0.00018904,2]
[361696884,1747697454424,-430.0,0.00018904,2]
[361696885,1747697454435,-430.0,0.00018904,2]
[361696886,1747697454445,-451.43,0.00018904,2]
[361696887,1747697454455,-430.0,0.00018904,2]
[361696888,1747697454465,-340.0,0.00018904,2]
[361696889,1747697454475,-430.0,0.00018904,2]
[361696890,1747697454485,-430.0,0.00018904,2]
[361696891,1747697454495,-430.0,0.00018904,2]
[361696892,1747697454504,-430.0,0.00018904,2]
[361696893,1747697454517,-430.0,0.00018904,2]
[361696894,1747697454526,-430.0,0.00018904,2]
[361696895,1747697454536,-430.0,0.00018904,2]
[361696896,1747697454546,-961.86,0.00018904,2]
[361696897,1747697454556,-564.52,0.00018904,2]
[361696898,1747697454565,-430.0,0.00018904,2]
[361696899,1747697454575,-430.0,0.00018904,2]
[361696900,1747697454585,-430.0,0.00018904,2]
[361696901,1747697454594,-577.9,0.00018904,2]
[361696902,1747697454603,-426.19561167,0.00018904,2]
[361696903,1747697454613,-456.15,0.00018904,2]
[361696904,1747697454624,-1144.07,0.00018904,2]
[361696905,1747697454634,-430.0,0.00018904,2]
[361696906,1747697454643,-430.0,0.00018904,2]
[361696907,1747697454653,-657.02,0.00018904,2]
[361696908,1747697454663,-430.0,0.00018904,2]
[361696909,1747697454672,-430.0,0.00018904,2]
[361696910,1747697454682,-430.0,0.00018904,2]
[361696911,1747697454692,-430.0,0.00018904,2]
[361696912,1747697454828,-482.85,0.00018904,2]
[361696913,1747697454838,-636.82,0.00018904,2]
[361696914,1747697454847,-905.25,0.00018904,2]
[361696915,1747697454856,-489.84,0.00018904,2]
[361696916,1747697454865,-219.09,0.00018904,2]
[361696917,1747697454875,-430.0,0.00018904,2]
[361696918,1747697454885,-430.0,0.00018904,2]
[361696919,1747697454894,-537.67,0.00018904,2]
[361696920,1747697454904,-430.0,0.00018904,2]
[361696921,1747697454913,-430.0,0.00018904,2]
[361696922,1747697454922,-494.9343198,0.00018904,2]
[361696923,1747697454931,-430.0,0.00018904,2]
[361696924,1747697454941,-430.0,0.00018904,2]
[361696925,1747697454950,-430.0,0.00018904,2]
[361696926,1747697454959,-952.65,0.00018904,2]
[361696927,1747697454968,-430.0,0.00018904,2]
[361696928,1747697454978,-430.0,0.00018904,2]
[361696929,1747697454987,-470.0,0.00018904,2]
[361696930,1747697454996,-270.0,0.00018904,2]
[361696931,1747697455005,-430.0,0.00018904,2]
[361696932,1747697455014,-430.0,0.00018904,2]
[361696933,1747697455024,-430.0,0.00018904,2]
[361696934,1747697455033,-1041.9,0.00018904,2]
[361696935,1747697455042,-430.0,0.00018904,2]
[361696936,1747697455051,-766.95,0.00018904,2]
[361696937,1747697455061,-430.0,0.00018904,2]
[361696938,1747697455070,-430.0,0.00018904,2]
[361696939,1747697455079,-436.28,0.00018904,2]
[361696940,1747697455088,-5164.12,0.00018904,2]
[361696941,1747697455097,-430.0,0.00018904,2]
[361696942,1747697455107,-430.0,0.00018904,2]
[361696943,1747697455116,-430.0,0.00018904,2]
[361696944,1747697455126,-5661.2,0.00018904,2]
[361696945,1747697455136,-430.0,0.00018904,2]
[361696946,1747697455145,-430.0,0.00018904,2]
[361696947,1747697455155,-892.96,0.00018904,2]
[361696948,1747697455164,-273.06,0.00018904,2]
[361696949,1747697455173,-430.0,0.00018904,2]
[361696950,1747697455182,-430.0,0.00018904,2]
[361696951,1747697455192,-828.86,0.00018904,2]
[361696952,1747697455201,-430.0,0.00018904,2]
[361696953,1747697455210,-490.0,0.00018904,2]
[361696954,1747697455219,-1076.73,0.00018904,2]
[361696955,1747697455229,-1068.44,0.00018904,2]
[361696956,1747697455238,-430.0,0.00018904,2]
[361696957,1747697455248,-430.0,0.00018904,2]
[361696958,1747697455256,-329.34,0.00018904,2]
[361696959,1747697455266,-430.0,0.00018904,2]
[361696960,1747697455275,-430.0,0.00018904,2]
[361696961,1747697455285,-446.71,0.00018904,2]
[361696962,1747697455294,-430.0,0.00018904,2]
[361696963,1747697455304,-1723.72,0.00018904,2]
[361696964,1747697455314,-430.0,0.00018904,2]
[361696965,1747697455323,-430.0,0.00018904,2]
[361696966,1747697455332,-356.0,0.00018904,2]
[361696967,1747697455341,-1069.51,0.00018904,2]
[361696968,1747697455351,-430.0,0.00018904,2]
[361696969,1747697455360,-430.0,0.00018904,2]
[361696970,1747697455369,-969.97,0.00018904,2]
[361696971,1747697455378,-468.8,0.00018904,2]
[361696972,1747697455388,-430.0,0.00018904,2]
[361696973,1747697455397,-430.0,0.00018904,2]
[361696974,1747697455407,-1043.22,0.00018904,2]
[361696975,1747697455417,-511.44,0.00018904,2]
[361696976,1747697455426,-430.0,0.00018904,2]
[361696977,1747697455440,-430.0,0.00018904,2]
[361696978,1747697455449,-1303.12,0.00018904,2]
[361696979,1747697455459,-705.67,0.00018904,2]
[361696980,1747697455468,-1737.97,0.00018904,2]
[361696981,1747697455479,-430.0,0.00018904,2]
[361696982,1747697455488,-484.59,0.00018904,2]
[361696983,1747697455497,-430.0,0.00018904,2]
[361696984,1747697455508,-430.0,0.00018904,2]
[361696985,1747697455517,-430.0,0.00018904,2]
[361696986,1747697455526,-485.3,0.00018904,2]
[361696987,1747697455536,-2141.67,0.00018904,2]
[361696988,1747697455545,-555.44,0.00018904,2]
[361696989,1747697455554,-430.0,0.00018904,2]
[361696990,1747697455564,-3476.16,0.00018904,2]
[361696991,1747697455573,-430.0,0.00018904,2]
[361696992,1747697455583,-800.73,0.00018904,2]
[361696993,1747697455592,-695.3,0.00018904,2]
[361696994,1747697455602,-430.0,0.00018904,2]
[361696995,1747697455612,-532.3,0.00018904,2]
[361696996,1747697455621,-430.0,0.00018904,2]
[361696997,1747697455630,-873.21,0.00018904,2]
[361696998,1747697455640,-516.57,0.00018904,2]
[361696999,1747697455649,-496.49269149,0.00018904,2]
[361697039,1747698632300,-5000.0,0.00013426,2]
[361697041,1747698632311,-236.543692,0.00013699,2]
[361697043,1747698632320,-270.0868891,0.00017291,2]
[361697045,1747698632329,-3323.2754121,0.00017534,2]
[361697047,1747698632338,-851.87136474,0.000179,2]
[361697049,1747698632347,-300.0,0.00018175,2]
[361697051,1747698632357,-851.8713646,0.00018176,2]
[361697053,1747698632367,-2256.86746996,0.00018256,2]
[361697055,1747698632376,-564.33,0.00018346,3]
[361697058,1747698632385,-282.17,0.00018346,3]
[361697060,1747698632394,-846.53,0.00018346,3]
[361697062,1747698632403,-191.79074806,0.00018355,2]
[361697063,1747698632413,-500.0,0.00018355,2]
[361697065,1747698632422,-500.0,0.00018355,2]
[361697067,1747698632431,-500.0,0.00018355,2]
[361697069,1747698632440,-500.0,0.00018355,2]
[361697071,1747698632450,-500.0,0.00018355,2]
[361697072,1747698632459,-500.0,0.00018355,2]
[361697073,1747698632468,-419.25418744,0.00018355,2]
[361697074,1747698632481,-80.74581256,0.00018355,2]
[361697076,1747698632491,-456.08168753,0.00018355,2]
[361697078,1747698632500,-500.0,0.00018355,2]
[361697079,1747698632510,-500.0,0.00018355,2]
[361697080,1747698632519,-500.0,0.00018355,2]
[361697081,1747698632529,-500.0,0.00018355,2]
[361697082,1747698632538,-500.0,0.00018355,2]
[361697083,1747698632548,-500.0,0.00018355,2]
[361697085,1747698632557,-235.93001523,0.00018355,2]
[361697111,1747698638011,-264.06998477,0.00018355,2]
[361697113,1747698638021,-500.0,0.00018355,2]
[361697115,1747698638031,-500.0,0.00018355,2]
[361697117,1747698638040,-500.0,0.00018355,2]
[361697119,1747698638049,-500.0,0.00018355,2]
[361697121,1747698638059,-500.0,0.00018355,2]
[361697122,1747698638068,-220.11110724,0.00018355,2]
[361697123,1747698638078,-8.02767619,0.00018355,2]
[361697164,1747698640342,-491.97232381,0.00018355,2]
[361697165,1747698640352,-181.62767619,0.00018355,2]
[361697169,1747698641202,7575.0,0.00025601,120]
[361697180,1747698646221,-5000.0,0.00018171,2]
[361697181,1747698646231,-318.37232381,0.00018355,2]
[361697182,1747698646240,-500.0,0.00018355,2]
[361697183,1747698646250,-500.0,0.00018355,2]
[361697184,1747698646259,-164.10735683,0.00018355,2]
[361697185,1747698646269,-500.0,0.00018355,2]
[361697186,1747698646278,-500.0,0.00018355,2]
[361697187,1747698646287,-475.90230474,0.00018355,2]
[361697188,1747698646297,-500.0,0.00018355,2]
[361697189,1747698646306,-500.0,0.00018355,2]
[361697190,1747698646315,-500.0,0.00018355,2]
[361697191,1747698646325,-283.13161331,0.00018355,2]
[361697192,1747698646334,-430.0,0.00018356,2]
[361697193,1747698646343,-430.0,0.00018356,2]
[361697195,1747698646548,-532.48,0.00018356,2]
[361697196,1747698646559,-430.0,0.00018356,2]
[361697197,1747698646568,-430.0,0.00018356,2]
[361697198,1747698646579,-430.0,0.00018356,2]
[361697199,1747698646589,-255.36411158,0.00018356,2]
[361697200,1747698659173,0.39858347,0.000254,120]
[361697201,1747698659194,450.40311653,0.000254,120]
[361697203,1747698746490,156.305,0.000254,120]
[361697212,1747699149329,-570.0011998,0.0001713,2]
[361697213,1747699149353,-22.9988002,0.00017173,2]
[361697226,1747699460956,196.73188347,0.000254,120]
[361697294,1747699838389,-3810.41667813,0.00013292,2]
[361697295,1747699838399,-234.296584,0.00013699,2]
[361697299,1747699838558,-201.0648938,0.00016792,2]
[361697309,1747699840854,-104.4958442,0.00016792,2]
[361697310,1747699840864,-176.735029,0.00016825,2]
[361697311,1747699840874,-300.0,0.00017346,2]
[361697312,1747699840884,-1200.0,0.00017346,2]
[361697313,1747699840893,-300.0,0.00017346,2]
[361697314,1747699840904,-18098.29744768,0.00017347,2]
[361697315,1747699840916,-1842.15314621,0.00017347,2]
[361697316,1747699840928,-518.92912831,0.00017347,2]
[361697317,1747699840940,-4440.6202778,0.00017347,2]
[361697318,1747699840950,-467.5035788,0.0001735,2]
[361697319,1747699840960,-607.36993176,0.00018147,2]
[361697320,1747699840970,-3879.13,0.00018346,3]
[361697321,1747699840979,-1939.57,0.00018346,3]
[361697322,1747699840991,-969.78,0.00018346,3]
[361697323,1747699841000,-484.89,0.00018346,3]
[361697324,1747699841010,-242.45,0.00018346,3]
[361697325,1747699841020,-727.37,0.00018346,3]
[361697326,1747699841029,-998.68447496,0.00018348,3]
[361697327,1747699841040,-2207.82788211,0.00018348,3]
[361697328,1747699841052,-7664.43954302,0.00018348,3]
[361697329,1747699841063,-212.35735062,0.00018348,3]
[361697330,1747699841072,-1624.33676725,0.00018348,2]
[361697338,1747699843513,-303.486814,0.00018348,2]
[361697346,1747699843690,-4780.49397648,0.00018348,2]
[361697364,1747699846522,-11577.16425438,0.00018348,2]
[361697365,1747699846532,-12638.53552368,0.00018348,3]
[361697366,1747699846541,-314.45853212,0.00018348,3]
[361697367,1747699846549,-512.4589538,0.00018349,2]
[361697368,1747699846559,-500.0,0.00018349,2]
[361697369,1747699846568,-500.0,0.00018349,2]
[361697370,1747699846578,-374.88273603,0.00018349,2]
[361697371,1747699846593,-125.11726397,0.00018349,2]
[361697372,1747699846602,-358.92979051,0.00018349,2]
[361697373,1747699846612,-500.0,0.00018349,2]
[361697374,1747699846621,-500.0,0.00018349,2]
[361697375,1747699846630,-500.0,0.00018349,2]
[361697376,1747699846640,-500.0,0.00018349,2]
[361697377,1747699846649,-500.0,0.00018349,2]
[361697378,1747699846658,-500.0,0.00018349,2]
[361697380,1747699846668,-500.0,0.00018349,2]
[361697381,1747699846677,-500.0,0.00018349,2]
[361697382,1747699846687,-500.0,0.00018349,2]
[361697383,1747699846696,-500.0,0.00018349,2]
[361697384,1747699846705,-599.2788703,0.00018349,2]
[361697385,1747699846715,-500.0,0.00018349,2]
[361697387,1747699846724,-500.0,0.00018349,2]
[361697388,1747699846733,-500.0,0.00018349,2]
[361697389,1747699846743,-500.0,0.00018349,2]
[361697390,1747699846753,-500.0,0.00018349,2]
[361697391,1747699846762,-500.0,0.00018349,2]
[361697392,1747699846771,-467.67839646,0.00018349,2]
[361697393,1747699846781,-500.0,0.00018349,2]
[361697394,1747699846790,-500.0,0.00018349,2]
[361697395,1747699846799,-234.8874791,0.00018349,2]
[361697396,1747699846808,-500.0,0.00018349,2]
[361697397,1747699846817,-500.0,0.00018349,2]
[361697398,1747699846827,-500.0,0.00018349,2]
[361697399,1747699846836,-500.0,0.00018349,2]
[361697400,1747699846846,-486.10719718,0.00018349,2]
[361697401,1747699846856,-630.0710807,0.00018349,2]
[361697402,1747699846866,-176.20962485,0.00018349,2]
[361697403,1747699846876,-500.0,0.00018349,2]
[361697404,1747699846885,-500.0,0.00018349,2]
[361697405,1747699846895,-500.0,0.00018349,2]
[361697406,1747699846908,-500.0,0.00018349,2]
[361697407,1747699846918,-500.0,0.00018349,2]
[361697408,1747699846928,-500.0,0.00018349,2]
[361697409,1747699846938,-500.0,0.00018349,2]
[361697410,1747699846947,-500.0,0.00018349,2]
[361697411,1747699846957,-500.0,0.00018349,2]
[361697412,1747699846967,-500.0,0.00018349,2]
[361697413,1747699846977,-500.0,0.00018349,2]
[361697414,1747699846987,-500.0,0.00018349,2]
[361697415,1747699846997,-500.0,0.00018349,2]
[361697416,1747699847008,-500.0,0.00018349,2]
[361697417,1747699847018,-500.0,0.00018349,2]
[361697418,1747699847028,-500.0,0.00018349,2]
[361697419,1747699847037,-500.0,0.00018349,2]
[361697420,1747699847047,-500.0,0.00018349,2]
[361697421,1747699847056,-500.0,0.00018349,2]
[361697422,1747699847067,-500.0,0.00018349,2]
[361697423,1747699847077,-500.0,0.00018349,2]
[361697424,1747699847087,-500.0,0.00018349,2]
[361697425,1747699847097,-500.0,0.00018349,2]
[361697426,1747699847106,-500.0,0.00018349,2]
[361697427,1747699847115,-380.56645017,0.00018349,2]
[361697428,1747699847125,-500.0,0.00018349,2]
[361697429,1747699847135,-500.0,0.00018349,2]
[361697430,1747699847145,-500.0,0.00018349,2]
[361697431,1747699847156,-500.0,0.00018349,2]
[361697432,1747699847166,-500.0,0.00018349,2]
[361697433,1747699847175,-500.0,0.00018349,2]
[361697434,1747699847185,-500.0,0.00018349,2]
[361697435,1747699847194,-500.0,0.00018349,2]
[361697436,1747699847204,-500.0,0.00018349,2]
[361697437,1747699847214,-500.0,0.00018349,2]
[361697438,1747699847224,-499.99999999,0.00018349,2]
[361697439,1747699847234,-500.0,0.00018349,2]